fUST/lending_fUST_20250520
["ID","MTS","AMOUNT","RATE_DAILY","PERIOD"]
[361747923,1747753849655,-343.51128,0.00020195,2]
[361747924,1747753849666,-525.45795614,0.00020195,2]
[361747925,1747753849676,-265.62289785,0.00020195,2]
[361747926,1747753849686,-1000.0,0.00020195,2]
[361747927,1747753849696,-1000.0,0.00020195,2]
[361747928,1747753849705,-1200.0,0.00020195,2]
[361747929,1747753849716,-583.13143399,0.00020195,2]
[361747930,1747753849726,-151.0,0.000202,3]
[361747931,1747753849735,-500.0,0.000202,2]
[361747932,1747753849745,-500.0,0.000202,2]
[361747933,1747753849756,-500.0,0.00020218,2]
[361747934,1747753849766,-1000.0,0.00020232,2]
[361747935,1747753849775,-1000.0,0.00020232,2]
[361747936,1747753849785,-1000.0,0.00020232,2]
[361747937,1747753849794,-1000.0,0.00020232,2]
[361747938,1747753849805,-1000.0,0.00020232,2]
[361747939,1747753849814,-1008.97023843,0.00020232,2]
[361747940,1747753849824,-1000.0,0.00020232,2]
[361747941,1747753849835,-1000.0,0.00020232,2]
[361747942,1747753849845,-1000.0,0.00020232,2]
[361747943,1747753849855,-1000.0,0.00020232,2]
[361747944,1747753849865,-1000.0,0.00020232,2]
[361747945,1747753849875,-1000.0,0.00020232,2]
[361747946,1747753849886,-1000.0,0.00020232,2]
[361747947,1747753849896,-1000.0,0.00020232,2]
[361747948,1747753849906,-844.79169137,0.00020232,2]
[361747949,1747753849915,-1000.0,0.00020232,2]
[361747950,1747753849925,-1000.0,0.00020232,2]
[361747951,1747753849935,-517.13938249,0.00020232,2]
[361747952,1747753849946,-1000.0,0.00020232,2]
[361747953,1747753849958,-1000.0,0.00020232,2]
[361747954,1747753849968,-1000.0,0.00020232,2]
[361747955,1747753849977,-151.0,0.00020259,2]
[361747956,1747753849991,-864.66012255,0.00020259,2]
[361747957,1747753850010,-135.33987745,0.00020259,2]
[361747958,1747753850019,-151.0,0.0002027,2]
[361747959,1747753850030,-500.0,0.0002027,2]
[361747960,1747753850039,-500.0,0.0002027,2]
[361747961,1747753850050,-151.0,0.00020273,2]
[361747962,1747753850059,-151.0,0.00020273,2]
[361747963,1747753850069,-151.0,0.00020273,2]
[361747964,1747753850079,-151.0,0.00020273,2]
[361747965,1747753850090,-475.57,0.00020273,2]
[361747966,1747753850099,-151.0,0.00020273,2]
[361747967,1747753850110,-430.0,0.00020273,2]
[361747968,1747753850121,-175.426354,0.00020273,2]
[361747969,1747753850130,-151.0,0.00020273,2]
[361747970,1747753850141,-338.75689,0.00020273,2]
[361747971,1747753850150,-215.138576,0.00020273,2]
[361747972,1747753850159,-338.75689,0.00020273,2]
[361747973,1747753850170,-215.138576,0.00020273,2]
[361747974,1747753850179,-517.93,0.00020273,2]
[361747975,1747753850190,-802.98,0.00020273,2]
[361747976,1747753850199,-1098.54,0.00020273,2]
[361747977,1747753850209,-157.70189511,0.00020273,2]
[361747978,1747753850219,-430.0,0.00020273,2]
[361747979,1747753850229,-1724.98,0.00020273,2]
[361747980,1747753850240,-707.57,0.00020273,2]
[361747981,1747753850251,-151.0,0.00020273,2]
[361747982,1747753850261,-2982.33,0.00020273,2]
[361747983,1747753850271,-896.57,0.00020273,2]
[361747984,1747753850282,-738.18,0.00020273,2]
[361747985,1747753850292,-734.47,0.00020273,2]
[361747986,1747753850302,-2183.46,0.00020273,2]
[361747987,1747753850311,-999.29,0.00020273,2]
[361747988,1747753850321,-505.97,0.00020273,2]
[361747989,1747753850330,-603.08,0.00020273,2]
[361747990,1747753850341,-930.4,0.00020273,2]
[361747991,1747753850351,-430.0,0.00020273,2]
[361747992,1747753850361,-563.26,0.00020273,2]
[361747993,1747753850371,-1590.48,0.00020273,2]
[361747994,1747753850381,-500.0,0.00020288,2]
[361747995,1747753850391,-151.0,0.000203,3]
[361747996,1747753850402,-5182.41492985,0.00020314,3]
[361747997,1747753850412,-151.0,0.000204,2]
[361747998,1747753850422,-2174.51286882,0.000204,2]
[361747999,1747753850433,-3000.0,0.00020445,2]
[361748000,1747753850442,-160.0,0.00020546,4]
[361748001,1747753850452,-205.0,0.00020547,2]
[361748002,1747753850462,-205.0,0.00020547,2]
[361748003,1747753850472,-205.0,0.00020547,2]
[361748004,1747753850481,-205.0,0.00020547,2]
[361748005,1747753850491,-205.0,0.00020547,2]
[361748006,1747753850500,-205.0,0.00020547,2]
[361748007,1747753850511,-205.0,0.00020547,2]
[361748008,1747753850520,-205.0,0.00020547,2]
[361748009,1747753850531,-205.0,0.00020547,2]
[361748010,1747753850540,-205.0,0.00020547,2]
[361748011,1747753850550,-205.0,0.00020547,2]
[361748012,1747753850560,-343.51128,0.00020547,2]
[361748013,1747753850570,-343.51128,0.00020547,2]
[361748014,1747753850579,-475.57,0.00020547,2]
[361748015,1747753850589,-430.0,0.00020547,2]
[361748016,1747753850601,-517.93,0.00020547,2]
[361748017,1747753850611,-802.98,0.00020547,2]
[361748018,1747753850621,-151.0,0.00020547,2]
[361748019,1747753850630,-1098.54,0.00020547,2]
[361748020,1747753850641,-430.0,0.00020547,2]
[361748021,1747753850651,-1724.98,0.00020547,2]
[361748022,1747753850661,-707.57,0.00020547,2]
[361748023,1747753850671,-2982.33,0.00020547,2]
[361748024,1747753850681,-151.0,0.00020547,2]
[361748025,1747753850691,-896.57,0.00020547,2]
[361748026,1747753850702,-738.18,0.00020547,2]
[361748027,1747753850712,-734.47,0.00020547,2]
[361748028,1747753850722,-2183.46,0.00020547,2]
[361748029,1747753850732,-999.29,0.00020547,2]
[361748030,1747753850743,-505.97,0.00020547,2]
[361748031,1747753850754,-603.08,0.00020547,2]
[361748032,1747753850765,-930.4,0.00020547,2]
[361748033,1747753850776,-430.0,0.00020547,2]
[361748034,1747753850787,-563.26,0.00020547,2]
[361748035,1747753850797,-1590.48,0.00020547,2]
[361748036,1747753850808,-151.0,0.00020548,2]
[361748037,1747753850817,-152.008998,0.00020548,2]
[361748038,1747753850827,-13885.15182481,0.000206,7]
[361748039,1747753850837,-151.0,0.000206,2]
[361748040,1747753850847,-175.426354,0.000206,2]
[361748041,1747753850857,-151.0,0.000206,2]
[361748042,1747753850867,-151.0,0.000206,2]
[361748043,1747753850878,-151.0,0.000206,3]
[361748044,1747753850887,-338.75689,0.000206,2]
[361748045,1747753850899,-215.138576,0.000206,2]
[361748046,1747753850908,-338.75689,0.000206,2]
[361748047,1747753850920,-215.138576,0.000206,2]
[361748048,1747753850931,-151.0,0.000206,2]
[361748049,1747753850943,-314.48519801,0.000206,7]
[361748050,1747753850954,-212.38718278,0.000206,7]
[361748051,1747753850964,-6320.40577659,0.0002061,2]
[361748052,1747753850974,-21448.5710305,0.0002061,2]
[361748053,1747753850986,-151.0,0.0002061,2]
[361748054,1747753850996,-151.0,0.0002061,2]
[361748055,1747753851006,-151.0,0.0002061,2]
[361748056,1747753851015,-151.0,0.0002061,2]
[361748057,1747753851026,-151.0,0.0002061,2]
[361748058,1747753851036,-151.0,0.00020624,2]
[361748059,1747753851045,-5182.41492985,0.00020624,3]
[361748060,1747753851057,-151.0,0.000207,3]
[361748061,1747753851066,-160.0,0.000207,3]
[361748062,1747753851075,-1875.35,0.0002071,20]
[361748063,1747753851085,-1500.0,0.00020743,2]
[361748064,1747753851094,-213.00770043,0.00020743,2]
[361748065,1747753851103,-1800.0,0.00020743,2]
[361748066,1747753851113,-1000.0,0.00020748,2]
[361748067,1747753851123,-404.0,0.00020763,2]
[361748068,1747753851134,-1000.0,0.00020766,2]
[361748069,1747753851144,-894.64583333,0.0002077,3]
[361748070,1747753851154,-1500.0,0.0002078,2]
[361748071,1747753851164,-505.72976261,0.0002078,2]
[361748072,1747753851173,-1500.0,0.0002078,2]
[361748073,1747753851183,-1500.0,0.0002078,2]
[361748074,1747753851193,-1500.0,0.0002078,2]
[361748075,1747753851202,-1500.0,0.0002078,2]
[361748076,1747753851212,-1499.85961683,0.0002078,2]
[361748077,1747753851343,-318.517573,0.00018082,2]
[361748078,1747753851353,-318.517573,0.0001863,2]
[361748079,1747753851362,-318.517573,0.00019178,2]
[361748080,1747753851372,-318.517573,0.00019329,2]
[361748081,1747753851382,-318.517573,0.00019726,2]
[361748082,1747753851391,-318.517573,0.0002,2]
[361748083,1747753851400,-160.0,0.000206,7]
[361748084,1747753851410,-0.14038317,0.0002078,2]
[361748085,1747753851420,-533.70865296,0.0002078,2]
[361748086,1747753851429,-1500.0,0.0002078,2]
[361748087,1747753851439,-1500.0,0.0002078,2]
[361748088,1747753851448,-1500.0,0.0002078,2]
[361748089,1747753851457,-1500.0,0.0002078,2]
[361748090,1747753851467,-1500.0,0.0002078,2]
[361748091,1747753851476,-1500.0,0.0002078,2]
[361748092,1747753851486,-1500.0,0.0002078,2]
[361748093,1747753851495,-517.58076503,0.0002078,2]
[361748094,1747753851507,-982.41923497,0.0002078,2]
[361748095,1747753851516,-1500.0,0.0002078,2]
[361748096,1747753851525,-1156.79134658,0.0002078,2]
[361748097,1747753851534,-343.51128,0.00020803,2]
[361748098,1747753851543,-343.51128,0.00020803,2]
[361748099,1747753851554,-1500.0,0.00020807,2]
[361748100,1747753851563,-259.60971459,0.00020818,2]
[361748101,1747753851573,-1000.0,0.00020818,2]
[361748102,1747753851583,-475.57,0.00020821,2]
[361748103,1747753851593,-151.0,0.00020821,2]
[361748104,1747753851603,-430.0,0.00020821,2]
[361748105,1747753851612,-175.426354,0.00020821,2]
[361748106,1747753851622,-151.0,0.00020821,2]
[361748107,1747753851631,-151.0,0.00020821,2]
[361748108,1747753851641,-338.75689,0.00020821,2]
[361748109,1747753851650,-215.138576,0.00020821,2]
[361748110,1747753851660,-338.75689,0.00020821,2]
[361748111,1747753851669,-215.138576,0.00020821,2]
[361748112,1747753851679,-517.93,0.00020821,2]
[361748113,1747753851689,-1098.54,0.00020821,2]
[361748114,1747753851699,-430.0,0.00020821,2]
[361748115,1747753851709,-1724.98,0.00020821,2]
[361748116,1747753851719,-707.57,0.00020821,2]
[361748117,1747753851728,-2982.33,0.00020821,2]
[361748118,1747753851738,-896.57,0.00020821,2]
[361748119,1747753851748,-738.18,0.00020821,2]
[361748120,1747753851758,-734.47,0.00020821,2]
[361748121,1747753851767,-2183.46,0.00020821,2]
[361748122,1747753851777,-999.29,0.00020821,2]
[361748123,1747753851787,-505.97,0.00020821,2]
[361748124,1747753851796,-603.08,0.00020821,2]
[361748125,1747753851807,-930.4,0.00020821,2]
[361748126,1747753851816,-430.0,0.00020821,2]
[361748127,1747753851826,-563.26,0.00020821,2]
[361748128,1747753851835,-1590.48,0.00020821,2]
[361748129,1747753851844,-1000.0,0.00020836,2]
[361748130,1747753851854,-1166.73769295,0.00020859,2]
[361748131,1747753851863,-151.0,0.00020868,2]
[361748132,1747753851872,-547.0,0.00020868,2]
[361748133,1747753851914,-2235.0,0.00020868,2]
[361748134,1747753851924,-707.0,0.00020868,2]
[361748135,1747753851933,-751.16442377,0.0002088,2]
[361748136,1747753851943,-166.00174823,0.000209,2]
[361748137,1747753851952,-5182.41492985,0.00020934,4]
[361748138,1747753851961,-157.89,0.00020981,2]
[361748139,1747753851970,-200.0,0.00020994,7]
[361748140,1747753851980,-200.96622575,0.00020994,7]
[361748141,1747753851992,-160.0,0.00020999,2]
[361748142,1747753852001,-267.4036114,0.00021,2]
[361748143,1747753852011,-1500.06675914,0.00021,10]
[361748144,1747753852020,-98672.36926979,0.00021,7]
[361748145,1747753852123,-2600.52118063,0.00021,7]
[361748146,1747753852186,-3790.77489243,0.00021,7]
[361748147,1747753921825,245.0,0.00027397,120]
[361748149,1747754342204,-153.03333796,0.00015393,2]
[361748150,1747754342237,-46.96666204,0.00015548,2]
[361748154,1747754536617,20000.0,0.0002739,120]
[361748162,1747754838864,-153.03333796,0.00015142,2]
[361748163,1747754838889,-30.82356816,0.0001545,2]
[361748164,1747754845488,-169.66225518,0.0001545,2]
[361748165,1747754845515,-19.07996565,0.00015548,2]
[361748166,1747754849648,-273.32914496,0.00015548,2]
[361748167,1747754854139,-185.23180546,0.00015548,2]
[361748168,1747754856531,-169.91242968,0.00015548,2]
[361748169,1747754863468,-173.0757672,0.00015393,2]
[361748170,1747754863493,-1.87221116,0.00015448,2]
[361748174,1747754923083,510.32363,0.0002,120]
[361748180,1747754963600,173.0757672,0.00025076,120]
[361748212,1747755032534,-222.957197,0.00013699,2]
[361748214,1747755032545,-173.0757672,0.00015294,2]
[361748216,1747755032554,-151.1611268,0.00015448,2]
[361748218,1747755032564,-300.0,0.00015548,2]
[361748219,1747755032573,-1200.0,0.00015548,2]
[361748221,1747755032583,-300.0,0.00015548,2]
[361748223,1747755032592,-19307.9382045,0.0001555,2]
[361748225,1747755032601,-153.03333796,0.00015732,2]
[361748227,1747755032611,-250.0,0.00015859,2]
[361748229,1747755032621,-153.03333796,0.00016016,2]
[361748231,1747755032630,-588.85841347,0.00016239,2]
[361748233,1747755032639,-153.03333796,0.000163,2]
[361748235,1747755032649,-713.9480248,0.00016338,2]
[361748237,1747755032659,-500.0,0.00016338,2]
[361748239,1747755032669,-500.0,0.00016338,2]
[361748241,1747755032678,-500.0,0.00016338,2]
[361748243,1747755032688,-500.0,0.00016338,2]
[361748244,1747755032698,-399.03056371,0.00016338,2]
[361748246,1747755032707,-500.0,0.00016338,2]
[361748248,1747755032716,-500.0,0.00016338,2]
[361748250,1747755032725,-500.0,0.00016338,2]
[361748252,1747755032735,-500.0,0.00016338,2]
[361748254,1747755032744,-262.39795607,0.00016338,2]
[361748256,1747755032753,-500.0,0.00016338,2]
[361748258,1747755032763,-500.0,0.00016338,2]
[361748260,1747755032772,-500.0,0.00016338,2]
[361748261,1747755032782,-500.0,0.00016338,2]
[361748263,1747755032791,-500.0,0.00016338,2]
[361748265,1747755032801,-500.0,0.00016338,2]
[361748267,1747755032810,-500.0,0.00016338,2]
[361748269,1747755032820,-500.0,0.00016338,2]
[361748271,1747755032830,-500.0,0.00016338,2]
[361748273,1747755032839,-500.0,0.00016338,2]
[361748275,1747755032849,-500.0,0.00016338,2]
[361748277,1747755032859,-500.0,0.00016338,2]
[361748279,1747755032868,-500.0,0.00016338,2]
[361748280,1747755032878,-500.0,0.00016338,2]
[361748281,1747755032888,-500.0,0.00016338,2]
[361748282,1747755032897,-500.0,0.00016338,2]
[361748283,1747755032907,-500.0,0.00016338,2]
[361748284,1747755032916,-500.0,0.00016338,2]
[361748285,1747755032926,-500.0,0.00016338,2]
[361748286,1747755032936,-500.0,0.00016338,2]
[361748287,1747755032947,-500.0,0.00016338,2]
[361748288,1747755032957,-500.0,0.00016338,2]
[361748289,1747755032966,-412.62649942,0.00016338,2]
[361748290,1747755032976,-500.0,0.00016338,2]
[361748291,1747755032986,-500.0,0.00016338,2]
[361748292,1747755032995,-500.0,0.00016338,2]
[361748293,1747755033005,-258.99606415,0.00016338,2]
[361748294,1747755033018,-241.00393585,0.00016338,2]
[361748295,1747755033027,-500.0,0.00016338,2]
[361748296,1747755033037,-500.0,0.00016338,2]
[361748297,1747755033047,-500.0,0.00016338,2]
[361748298,1747755033057,-500.0,0.00016338,2]
[361748299,1747755033067,-500.0,0.00016338,2]
[361748300,1747755033077,-500.0,0.00016338,2]
[361748301,1747755033087,-500.0,0.00016338,2]
[361748302,1747755033097,-500.0,0.00016338,2]
[361748303,1747755033107,-203.2627505,0.00016338,2]
[361748304,1747755033118,-500.0,0.00016338,2]
[361748305,1747755033128,-500.0,0.00016338,2]
[361748306,1747755033138,-500.0,0.00016338,2]
[361748307,1747755033148,-500.0,0.00016338,2]
[361748308,1747755033158,-500.0,0.00016338,2]
[361748309,1747755033168,-500.0,0.00016338,2]
[361748310,1747755033178,-500.0,0.00016338,2]
[361748311,1747755033188,-500.0,0.00016338,2]
[361748312,1747755033198,-500.0,0.00016338,2]
[361748313,1747755033208,-523.65982152,0.00016338,2]
[361748314,1747755033218,-500.0,0.00016338,2]
[361748315,1747755033227,-500.0,0.00016338,2]
[361748316,1747755033237,-594.56506953,0.00016338,2]
[361748317,1747755033247,-500.0,0.00016338,2]
[361748318,1747755033257,-500.0,0.00016338,2]
[361748319,1747755033267,-500.0,0.00016338,2]
[361748320,1747755033277,-500.0,0.00016338,2]
[361748321,1747755033286,-500.0,0.00016338,2]
[361748322,1747755033296,-500.0,0.00016338,2]
[361748323,1747755033306,-500.0,0.00016338,2]
[361748324,1747755033315,-500.0,0.00016338,2]
[361748325,1747755033326,-500.0,0.00016338,2]
[361748326,1747755033336,-500.0,0.00016338,2]
[361748327,1747755033346,-500.0,0.00016338,2]
[361748328,1747755033358,-500.0,0.00016338,2]
[361748329,1747755033368,-500.0,0.00016338,2]
[361748330,1747755033380,-500.0,0.00016338,2]
[361748331,1747755033391,-500.0,0.00016338,2]
[361748332,1747755033402,-500.0,0.00016338,2]
[361748333,1747755033412,-500.0,0.00016338,2]
[361748334,1747755033422,-500.0,0.00016338,2]
[361748335,1747755033432,-500.0,0.00016338,2]
[361748336,1747755033442,-500.0,0.00016338,2]
[361748337,1747755033452,-500.0,0.00016338,2]
[361748338,1747755033462,-500.0,0.00016338,2]
[361748339,1747755033471,-500.0,0.00016338,2]
[361748340,1747755033481,-500.0,0.00016338,2]
[361748341,1747755033490,-500.0,0.00016338,2]
[361748342,1747755033499,-500.0,0.00016338,2]
[361748343,1747755033509,-500.0,0.00016338,2]
[361748344,1747755033518,-500.0,0.00016338,2]
[361748345,1747755033528,-500.0,0.00016338,2]
[361748346,1747755033538,-500.0,0.00016338,2]
[361748347,1747755033547,-500.0,0.00016338,2]
[361748348,1747755033556,-500.0,0.00016338,2]
[361748349,1747755033566,-500.0,0.00016338,2]
[361748350,1747755033575,-500.0,0.00016338,2]
[361748351,1747755033586,-500.0,0.00016338,2]
[361748352,1747755033596,-500.0,0.00016338,2]
[361748353,1747755033606,-500.0,0.00016338,2]
[361748354,1747755033617,-500.0,0.00016338,2]
[361748355,1747755033626,-500.0,0.00016338,2]
[361748356,1747755033636,-500.0,0.00016338,2]
[361748357,1747755033645,-500.0,0.00016338,2]
[361748358,1747755033655,-500.0,0.00016338,2]
[361748359,1747755033665,-500.0,0.00016338,2]
[361748360,1747755033674,-500.0,0.00016338,2]
[361748361,1747755033684,-500.0,0.00016338,2]
[361748362,1747755033693,-500.0,0.00016338,2]
[361748363,1747755033703,-500.0,0.00016338,2]
[361748364,1747755033712,-500.0,0.00016338,2]
[361748365,1747755033722,-500.0,0.00016338,2]
[361748366,1747755033731,-500.0,0.00016338,2]
[361748367,1747755033741,-500.0,0.00016338,2]
[361748368,1747755033750,-500.0,0.00016338,2]
[361748369,1747755033760,-500.0,0.00016338,2]
[361748370,1747755033770,-500.0,0.00016338,2]
[361748371,1747755033779,-500.0,0.00016338,2]
[361748372,1747755033789,-500.0,0.00016338,2]
[361748373,1747755033798,-500.0,0.00016338,2]
[361748374,1747755033808,-500.0,0.00016338,2]
[361748375,1747755033818,-500.0,0.00016338,2]
[361748376,1747755033829,-500.0,0.00016338,2]
[361748377,1747755033838,-500.0,0.00016338,2]
[361748378,1747755033848,-500.0,0.00016338,2]
[361748379,1747755033858,-500.0,0.00016338,2]
[361748380,1747755033869,-626.41766013,0.00016338,2]
[361748381,1747755033879,-500.0,0.00016338,2]
[361748382,1747755033888,-500.0,0.00016338,2]
[361748383,1747755033898,-500.0,0.00016338,2]
[361748384,1747755033908,-500.0,0.00016338,2]
[361748385,1747755033919,-500.0,0.00016338,2]
[361748386,1747755033929,-500.0,0.00016338,2]
[361748387,1747755033939,-499.99999999,0.00016338,2]
[361748388,1747755033949,-500.0,0.00016338,2]
[361748389,1747755033959,-151.0,0.00016338,2]
[361748390,1747755033969,-54131.63159797,0.0001634,2]
[361748391,1747755033979,-500.0,0.00016365,2]
[361748392,1747755033989,-500.0,0.00016393,2]
[361748393,1747755034000,-151.0,0.000164,2]
[361748394,1747755034010,-347.75151355,0.0001642,2]
[361748395,1747755034020,-212.2,0.00016427,3]
[361748396,1747755034031,-636.6,0.00016427,3]
[361748397,1747755034041,-476.92364482,0.00016437,2]
[361748398,1747755034051,-500.0,0.00016437,2]
[361748399,1747755034071,-500.0,0.00016437,2]
[361748400,1747755034083,-500.0,0.00016437,2]
[361748401,1747755034093,-500.0,0.00016437,2]
[361748402,1747755034103,-500.0,0.00016437,2]
[361748403,1747755034113,-500.0,0.00016437,2]
[361748404,1747755034124,-500.0,0.00016437,2]
[361748405,1747755034134,-500.0,0.00016437,2]
[361748406,1747755034144,-288.37755675,0.00016437,2]
[361748407,1747755034155,-500.0,0.00016437,2]
[361748408,1747755034166,-500.0,0.00016437,2]
[361748409,1747755034177,-500.0,0.00016437,2]
[361748410,1747755034187,-500.0,0.00016437,2]
[361748411,1747755034197,-223.24853846,0.00016437,2]
[361748412,1747755034207,-500.0,0.00016437,2]
[361748413,1747755034217,-500.0,0.00016437,2]
[361748414,1747755034227,-500.0,0.00016437,2]
[361748415,1747755034237,-350.0,0.00016437,2]
[361748416,1747755034248,-309.68339155,0.00016438,2]
[361748417,1747755034258,-430.0,0.00016438,2]
[361748418,1747755034268,-430.0,0.00016438,2]
[361748419,1747755034278,-450.0,0.00016438,2]
[361748420,1747755034289,-450.0,0.00016438,2]
[361748421,1747755034299,-450.0,0.00016438,2]
[361748422,1747755034310,-400.0,0.00016438,2]
[361748423,1747755034320,-401.28383449,0.00016438,2]
[361748424,1747755034329,-430.0,0.00016438,2]
[361748425,1747755034339,-430.0,0.00016438,2]
[361748426,1747755034350,-400.0,0.00016438,2]
[361748427,1747755034363,-430.0,0.00016438,2]
[361748428,1747755034372,-400.0,0.00016438,2]
[361748429,1747755034382,-400.0,0.00016438,2]
[361748430,1747755034392,-401.76188981,0.00016438,2]
[361748431,1747755034402,-401.57520692,0.00016438,2]
[361748432,1747755034412,-400.0,0.00016438,2]
[361748433,1747755034421,-400.0,0.00016438,2]
[361748434,1747755034431,-430.0,0.00016438,2]
[361748435,1747755034441,-438.17,0.00016438,2]
[361748436,1747755034450,-400.0,0.00016438,2]
[361748437,1747755034460,-405.76350598,0.00016438,2]
[361748438,1747755034470,-400.0,0.00016438,2]
[361748439,1747755034479,-430.14,0.00016438,2]
[361748440,1747755034490,-400.0,0.00016438,2]
[361748441,1747755034500,-387.64834771,0.00016438,2]
[361748442,1747755034510,-403.95886691,0.00016438,2]
[361748443,1747755034521,-400.0,0.00016438,2]
[361748444,1747755034531,-430.0,0.00016438,2]
[361748445,1747755034541,-400.0,0.00016438,2]
[361748446,1747755034551,-400.0,0.00016438,2]
[361748447,1747755034561,-400.0,0.00016438,2]
[361748448,1747755034572,-400.0,0.00016438,2]
[361748449,1747755034583,-400.0,0.00016438,2]
[361748450,1747755034594,-300.0,0.00016438,2]
[361748451,1747755034604,-400.0,0.00016438,2]
[361748452,1747755034615,-400.0,0.00016438,2]
[361748453,1747755034625,-400.0,0.00016438,2]
[361748454,1747755034635,-401.08225389,0.00016438,2]
[361748455,1747755034647,-234.62645921,0.00016438,2]
[361748456,1747755034656,-536.90917548,0.00016438,2]
[361748457,1747755034666,-400.0,0.00016438,2]
[361748458,1747755034676,-430.0,0.00016438,2]
[361748459,1747755034686,-401.14504339,0.00016438,2]
[361748460,1747755034696,-403.46389106,0.00016438,2]
[361748461,1747755034706,-400.0,0.00016438,2]
[361748462,1747755034717,-400.0,0.00016438,2]
[361748463,1747755034727,-400.0,0.00016438,2]
[361748464,1747755034737,-400.0,0.00016438,2]
[361748465,1747755034748,-400.0,0.00016438,2]
[361748466,1747755034758,-400.0,0.00016438,2]
[361748467,1747755034768,-430.0,0.00016438,2]
[361748468,1747755034778,-400.0,0.00016438,2]
[361748469,1747755034787,-500.0,0.00016438,2]
[361748470,1747755034797,-500.0,0.00016438,2]
[361748471,1747755034808,-500.0,0.00016438,2]
[361748472,1747755034817,-500.0,0.00016438,2]
[361748473,1747755034827,-500.0,0.00016438,2]
[361748474,1747755034837,-400.0,0.00016438,2]
[361748475,1747755034846,-400.0,0.00016438,2]
[361748476,1747755034856,-431.94,0.00016438,2]
[361748477,1747755034868,-400.0,0.00016438,2]
[361748478,1747755034878,-400.0,0.00016438,2]
[361748479,1747755034888,-402.83758953,0.00016438,2]
[361748480,1747755035116,-300.0,0.00016438,2]
[361748481,1747755035126,-434.61,0.00016438,2]
[361748482,1747755035136,-400.0,0.00016438,2]
[361748483,1747755035146,-400.0,0.00016438,2]
[361748484,1747755035156,-430.0,0.00016438,2]
[361748485,1747755035166,-450.0,0.00016438,2]
[361748486,1747755035175,-443.68,0.00016438,2]
[361748487,1747755035185,-507.47,0.00016438,2]
[361748488,1747755035196,-198.91355855,0.00016438,2]
[361748489,1747755035206,-500.0,0.00016438,2]
[361748490,1747755035217,-500.0,0.00016438,2]
[361748491,1747755035226,-500.0,0.00016438,2]
[361748492,1747755035237,-500.0,0.00016438,2]
[361748493,1747755035246,-500.0,0.00016438,2]
[361748494,1747755035255,-450.0,0.00016438,2]
[361748495,1747755035265,-450.0,0.00016438,2]
[361748496,1747755035275,-450.0,0.00016438,2]
[361748497,1747755035284,-430.0,0.00016438,2]
[361748498,1747755035294,-430.0,0.00016438,2]
[361748499,1747755035304,-450.0,0.00016438,2]
[361748500,1747755035313,-450.0,0.00016438,2]
[361748501,1747755035323,-430.0,0.00016438,2]
[361748502,1747755035334,-407.3406,0.00016438,2]
[361748503,1747755035343,-430.0,0.00016438,2]
[361748504,1747755035356,-400.0,0.00016438,2]